bitfinex/quotes_SOLUSD_20240711
["timestamp","ask_amount","ask_price","bid_price","bid_amount"]
[1720712422129,52.1338,140.18,140.13,15.1831]
[1720712422818,52.1338,140.18,140.1,31.58276548]
[1720712422819,7.1348,140.16,140.1,24.1266]
[1720712423117,7.1348,140.16,140.1,6.2829]
[1720712423413,45.0,140.18,140.11,7.1371]
[1720712423619,45.0,140.18,140.1,13.4204]
[1720712423927,45.0,140.18,140.09,15.1997]
[1720712424113,7.1357,140.14,140.07,13.422]
[1720712424297,7.1363,140.13,140.07,6.2829]
[1720712424495,17.8361,140.17,140.06,7.45689027]
[1720712424802,45.0,140.12,140.05,15.1997]
[1720712425009,52.1368,140.12,140.05,22.3399]
[1720712425315,52.1368,140.12,140.05,40.1901]
[1720712425513,45.0,140.12,140.05,40.1901]
[1720712425715,45.0,140.12,140.06,7.1397]
[1720712426020,45.0,140.12,140.05,33.0499]
[1720712426021,52.1367,140.12,140.05,40.19]
[1720712426605,7.1372,140.11,140.05,33.0499]
[1720712427023,7.1372,140.11,140.04,7.1408]
[1720712427700,52.1368,140.12,140.05,7.1402]
[1720712428102,7.1373,140.11,140.05,7.1402]
[1720712428402,45.0,140.12,140.04,24.9924]
[1720712428801,7.1376,140.11,140.04,24.9924]
[1720712429008,52.1368,140.12,140.05,7.1401]
[1720712430142,45.0,140.12,140.04,17.8517]
[1720712430926,45.0,140.12,140.05,7.1402]
[1720712431097,52.137,140.12,140.05,7.1402]
[1720712431299,7.1377,140.1,140.04,17.8517]
[1720712431494,7.1377,140.1,140.04,24.9925]
[1720712431817,7.1373,140.11,140.04,24.9925]
[1720712432002,45.0,140.1,140.04,24.9925]
[1720712432208,52.1379,140.1,140.04,17.8517]
[1720712432520,52.1379,140.1,140.04,24.9924]
[1720712433611,45.0,140.1,140.04,24.9924]
[1720712434423,7.1369,140.12,140.05,7.54106842]
[1720712434602,7.1369,140.12,140.05,7.1401]
[1720712434802,7.1373,140.11,140.04,17.8517]
[1720712435031,7.1373,140.11,140.05,1.42758132]
[1720712435337,7.1369,140.12,140.05,7.1402]
[1720712435709,20.76877352,140.15,140.04,24.9923]
[1720712435911,45.0,140.14,140.04,24.9923]
[1720712436111,7.1374,140.11,140.04,24.9923]
[1720712436308,2.93047352,140.15,140.06,17.8486]
[1720712436536,6.25127012,140.16,140.06,17.8486]
[1720712436537,7.1362,140.13,140.07,1.42733126]
[1720712436702,6.25127012,140.16,140.1,7.1375]
[1720712436907,7.1345,140.17,140.08,100.0]
[1720712437101,7.1338,140.18,140.11,7.1369]
[1720712437650,9.16613603,140.21,140.12,17.8414]
[1720712437832,7.1332,140.19,140.13,7.1358]
[1720712438207,9.16613603,140.21,140.11,7.1371]
[1720712438413,7.1342,140.17,140.1,400.4409]
[1720712438634,9.16613603,140.21,140.11,117.8424]
[1720712438826,7.1335,140.19,140.12,7.1367]
[1720712439134,7.134,140.18,140.11,24.9794]
[1720712439522,7.134,140.18,140.12,7.1366]
[1720712440023,7.1333,140.19,140.12,7.1366]
[1720712440228,9.16613603,140.21,140.11,17.8424]
[1720712440229,7.1327,140.2,140.13,7.70420461]
[1720712440440,24.07747012,140.25,140.13,487.3]
[1720712440610,7.1315,140.23,140.16,7.1342]
[1720712440947,7.17606578,140.28,140.18,116.0936]
[1720712441112,7.1294,140.27,140.2,24.9639]
[1720712441315,6.4929,140.3,140.21,0.59966153]
[1720712441515,9.39900344,140.3,140.21,0.59966153]
[1720712441722,24.06977012,140.31,140.2,17.8314]
[1720712441723,6.25127012,140.31,140.2,17.8314]
[1720712442032,13.37867012,140.31,140.24,7.1306]
[1720712442217,2.95666195,140.33,140.25,0.65703398]
[1720712442417,7.1266,140.32,140.25,7.78703398]
[1720712442724,7.1272,140.31,140.22,117.8281]
[1720712442930,7.1272,140.31,140.24,7.1304]
[1720712443113,7.1276,140.3,140.23,7.131]
[1720712443309,7.1276,140.3,140.22,17.8281]
[1720712443310,20.72425921,140.34,140.22,17.8281]
[1720712443535,7.1276,140.3,140.23,7.1307]
[1720712443743,17.8144,140.34,140.22,17.8281]
[1720712443917,8.81127012,140.35,140.24,17.8257]
[1720712444112,7.1272,140.31,140.24,24.9562]
[1720712444338,7.1266,140.32,140.24,24.9562]
[1720712444523,7.1276,140.3,140.24,17.8257]
[1720712444729,7.1276,140.3,140.23,7.1309]
[1720712444915,7.127,140.32,140.24,7.1305]
[1720712445121,29.52393428,140.35,140.24,7.1305]
[1720712445533,7.1275,140.31,140.23,7.131]
[1720712445843,17.816,140.33,140.21,405.1298]
[1720712446048,7.1286,140.28,140.21,394.4321]
[1720712446356,7.1286,140.28,140.21,7.1321]
[1720712446518,7.1286,140.28,140.21,7.1319]
[1720712446719,7.1276,140.3,140.23,7.1311]
[1720712447831,7.1284,140.29,140.22,17.8284]
[1720712448028,52.1287,140.28,140.22,17.8284]
[1720712448230,45.0,140.32,140.19,23.8542]
[1720712448734,7.1291,140.27,140.2,7.1322]
[1720712449148,7.1296,140.26,140.19,23.8542]
[1720712449336,17.8186,140.31,140.19,23.8542]
[1720712449650,45.0,140.3,140.19,23.8542]
[1720712449824,7.1309,140.24,140.19,6.0219]
[1720712450020,7.1315,140.23,140.16,24.9704]
[1720712450256,17.8233,140.27,140.16,17.8362]
[1720712450425,7.1314,140.23,140.16,24.9708]
[1720712450627,7.1312,140.23,140.16,24.9708]
[1720712450843,7.1316,140.22,140.16,24.9708]
[1720712451148,52.1325,140.21,140.14,7.1353]
[1720712451524,45.0,140.21,140.15,7.1351]
[1720712451740,45.0,140.21,140.16,7.1346]
[1720712452042,45.0,140.22,140.16,7.1346]
[1720712452544,7.1327,140.2,140.13,428.7017]
[1720712452728,7.1327,140.2,140.13,41.4017]
[1720712452928,45.0,140.22,140.14,7.1356]
[1720712452929,7.1322,140.21,140.14,7.1356]
[1720712453130,45.0,140.2,140.14,7.1356]
[1720712453530,7.132,140.22,140.14,7.1353]
[1720712453749,13.38087012,140.26,140.19,7.1331]
[1720712453926,7.1312,140.23,140.16,24.9707]
[1720712454341,6.25127012,140.26,140.13,16.4252]
[1720712454544,17.8323,140.2,140.11,6.1262]
[1720712454748,17.8284,140.23,140.11,6.1262]
[1720712454942,7.1346,140.17,140.11,6.1262]
[1720712455146,6.25127012,140.23,140.11,6.1262]
[1720712455352,45.0,140.22,140.13,17.8398]
[1720712455537,7.1332,140.19,140.13,17.8398]
[1720712455930,45.0,140.22,140.12,7.1365]
[1720712456135,7.1337,140.18,140.11,13.2633]
[1720712456335,7.1337,140.18,140.11,6.1262]
[1720712456546,45.0,140.22,140.14,7.1356]
[1720712456748,6.0468,140.21,140.09,17.845]
[1720712456932,45.0,140.2,140.09,17.845]
[1720712457338,62.8321,140.2,140.09,17.845]
[1720712457533,7.1352,140.15,140.09,17.845]
[1720712457755,45.0,140.14,140.09,24.9831]
[1720712458255,45.0,140.15,140.09,24.9831]
[1720712458451,52.1352,140.15,140.09,17.845]
[1720712458633,52.1352,140.15,140.08,22.3404]
[1720712458832,7.1358,140.14,140.07,13.4639]
[1720712459036,45.0,140.13,140.06,17.8487]
[1720712459252,45.0,140.13,140.06,7.45518311]
[1720712459833,45.0,140.13,139.99,22.5408]
[1720712460023,45.0,140.14,140.0,35.7136]
[1720712460230,45.0,140.14,139.99,29.99265386]
[1720712460544,7.1373,140.11,140.04,7.1407]
[1720712460753,7.1379,140.1,140.03,24.9937]
[1720712461055,62.84,140.14,140.0,17.8564]
[1720712461056,7.1387,140.08,140.0,17.8564]
[1720712461349,7.1378,140.1,140.03,7.1409]
[1720712461537,45.0,140.09,140.05,7.1399]
[1720712461743,45.0,140.09,140.03,7.1411]
[1720712462263,45.0,140.09,140.04,8.27463447]
[1720712462440,52.1377,140.1,140.04,7.1407]
[1720712462750,52.1377,140.1,140.03,24.994]
[1720712462941,7.1383,140.09,140.03,24.994]
[1720712463137,7.1383,140.09,140.03,17.8529]
[1720712463338,52.1378,140.1,140.03,24.9939]
[1720712463552,45.0,140.1,140.05,7.1401]
[1720712463734,52.1374,140.11,140.04,7.1407]
[1720712463935,7.1377,140.1,140.04,7.1407]
[1720712464138,52.1373,140.11,140.04,7.1407]
[1720712465138,7.1377,140.1,140.04,7.1407]
[1720712465551,52.1374,140.11,140.04,7.1407]
[1720712465958,2.82272455,140.15,140.05,17.8503]
[1720712466166,6.454,140.16,140.09,7.1382]
[1720712466337,7.1353,140.15,140.1,1.27569918]
[1720712466537,7.1348,140.16,140.08,8.41399918]
[1720712466743,17.8336,140.19,140.07,17.8478]
[1720712466957,7.1363,140.13,140.07,17.8478]
[1720712467259,7.1357,140.14,140.07,24.987]
[1720712467458,7.1352,140.16,140.08,7.1386]
[1720712467640,7.1352,140.15,140.08,7.1386]
[1720712467834,7.1358,140.14,140.07,17.8478]
[1720712468035,7.1363,140.13,140.07,17.8478]
[1720712468256,7.1363,140.13,140.06,7.1394]
[1720712468558,17.8359,140.17,140.04,17.8516]
[1720712468866,7.1357,140.14,140.07,7.1392]
[1720712469050,45.0,140.13,140.06,24.9887]
[1720712469237,45.0,140.13,140.06,17.8491]
[1720712469561,45.0,140.14,140.06,17.8491]
[1720712470056,7.1367,140.12,140.05,7.1401]
[1720712470262,7.1372,140.11,140.04,7.1406]
[1720712470556,45.0,140.14,140.03,387.3]
[1720712470761,7.1357,140.14,140.07,7.1391]
[1720712470959,7.1352,140.15,140.08,7.1386]
[1720712471163,7.1357,140.14,140.07,24.986]
[1720712471363,7.1353,140.15,140.08,7.1387]
[1720712471565,7.1359,140.14,140.07,17.8469]
[1720712471862,17.8367,140.17,140.04,17.8515]
[1720712472041,17.8367,140.17,140.06,7.1397]
[1720712472244,17.8367,140.17,140.05,7.1403]
[1720712472439,7.1376,140.11,140.04,24.9921]
[1720712472839,7.1377,140.1,140.04,17.8515]
[1720712473249,52.1383,140.09,140.03,387.3]
[1720712473440,7.1396,140.07,140.0,14.59530732]
[1720712473645,45.0,140.06,140.01,7.1423]
[1720712474268,7.1389,140.08,140.01,7.1423]
[1720712474269,45.0,140.07,140.01,7.1423]
[1720712474639,52.1393,140.07,140.0,7.1427]
[1720712475059,7.1398,140.06,139.99,7.1432]
[1720712475265,45.0,140.05,139.99,7.1432]
[1720712476052,52.1403,140.05,139.98,25.0025]
[1720712476249,45.0,140.05,139.99,7.1433]
[1720712476451,45.0,140.05,140.0,0.5696402]
[1720712476847,45.0,140.05,139.98,25.0026]
[1720712476848,52.1404,140.05,139.98,25.0026]
[1720712478147,45.0,140.05,139.99,7.1433]
[1720712478658,7.1392,140.08,140.01,7.1422]
[1720712478851,29.01446578,140.11,140.0,17.8567]
[1720712479050,29.01446578,140.11,139.95,409.3581]
[1720712479051,7.1398,140.06,139.99,7.143]
[1720712479459,17.8446,140.1,139.97,17.86]
[1720712479460,7.1404,140.05,139.98,7.1437]
[1720712479786,7.1398,140.06,139.99,7.1433]
[1720712480079,45.0,140.05,139.99,7.1433]
[1720712480250,45.0,140.05,140.0,7.1428]
[1720712480764,7.1403,140.05,139.99,17.858]
[1720712481080,45.0,140.04,139.99,17.858]
[1720712481873,45.0,140.04,139.98,7.1437]
[1720712482451,45.0,140.04,139.99,7.1433]
[1720712482950,7.1397,140.07,140.0,7.1426]
[1720712483152,45.0,140.06,140.0,17.8568]
[1720712483347,52.1392,140.07,140.0,24.9995]
[1720712483574,7.1398,140.06,140.0,24.9995]
[1720712483763,52.1407,140.05,139.97,17.8599]
[1720712483977,7.1399,140.06,139.99,7.1432]
[1720712484271,45.0,140.04,139.99,7.1433]
[1720712484484,45.0,140.04,139.98,7.1437]
[1720712485079,45.0,140.04,139.95,23.44721659]
[1720712485259,7.1423,140.01,139.94,25.0094]
[1720712485587,45.0,140.0,139.95,7.1454]
[1720712486574,45.0,140.01,139.94,17.8637]
[1720712486766,7.1429,140.0,139.94,17.8637]
[1720712487075,45.0,139.99,139.94,25.0095]
[1720712487577,45.0,140.0,139.94,25.0095]
[1720712487785,45.0,140.0,139.92,15.3736]
[1720712487982,7.1451,139.96,139.89,7.1481]
[1720712488150,45.0,139.95,139.9,7.1479]
[1720712488353,23.0169,139.96,139.87,0.8261568]
[1720712488577,7.1472,139.92,139.87,0.8261568]
[1720712488762,45.0,139.91,139.87,0.8261568]
[1720712488953,38.89908963,139.96,139.87,7.9750568]
[1720712489163,45.0,139.95,139.88,7.1488]
[1720712489358,7.1469,139.92,139.87,0.8261568]
[1720712489561,45.0,139.91,139.87,0.8261568]
[1720712491256,7.148,139.9,139.87,0.8261568]
[1720712491570,45.0,139.89,139.87,0.8261568]
[1720712491959,45.0,139.9,139.87,0.8261568]
[1720712492257,7.1483,139.9,139.87,0.8261568]
[1720712492457,52.1489,139.89,139.87,0.8261568]
[1720712492971,45.0,139.89,139.83,100.0]
[1720712493182,45.0,139.89,139.83,107.1515]
[1720712493352,45.0,139.89,139.83,100.0]
[1720712493560,59.59178152,139.96,139.83,117.8781]
[1720712493782,7.147,139.92,139.85,7.1505]
[1720712493980,17.8653,139.94,139.83,125.33968309]
[1720712494183,7.1482,139.9,139.83,100.0]
[1720712494668,7.1476,139.91,139.83,117.8785]
[1720712494867,7.147,139.92,139.83,117.8785]
[1720712495063,7.1474,139.91,139.85,7.1501]
[1720712495262,7.1481,139.9,139.83,125.0299]
[1720712495776,7.1488,139.89,139.83,100.0]
[1720712495967,45.0,139.88,139.83,100.0]
[1720712496293,7.1476,139.91,139.83,100.0]
[1720712496592,45.0,139.9,139.83,107.1514]
[1720712496763,45.0,139.9,139.83,100.0]
[1720712496960,45.0,139.9,139.84,7.1509]
[1720712497387,7.1476,139.91,139.84,7.1509]
[1720712497568,7.148,139.9,139.83,100.0]
[1720712497769,7.148,139.9,139.83,107.1514]
[1720712497983,7.1486,139.89,139.83,100.0]
[1720712498191,7.1496,139.87,139.83,100.0]
[1720712498781,45.0,139.89,139.8,21.6664]
[1720712498988,7.1496,139.87,139.8,28.8191]
[1720712499175,7.1496,139.87,139.78,263.95556517]
[1720712499176,16.2525,139.86,139.78,263.95556517]
[1720712499391,6.2925,139.87,139.78,263.95556517]
[1720712499392,45.0,139.85,139.78,263.95556517]
[1720712499579,45.0,139.85,139.78,17.8846]
[1720712499580,7.151,139.84,139.78,17.8846]
[1720712499897,62.88,139.83,139.77,0.04239412]
[1720712500073,45.0,139.85,139.77,0.04239412]
[1720712500267,45.0,139.86,139.77,0.04239412]
[1720712500497,54.56402134,139.86,139.77,0.04239412]
[1720712500668,7.1515,139.84,139.77,0.04239412]
[1720712500886,45.0,139.83,139.77,0.04239412]
[1720712501268,7.1533,139.8,139.77,0.04239412]
[1720712501529,14.52848253,139.85,139.77,0.04239412]
[1720712501796,45.0,139.84,139.77,0.04239412]
[1720712502373,1.13041768,139.85,139.77,0.04239412]
[1720712502575,46.13041768,139.85,139.77,0.04239412]
[1720712502998,53.28091768,139.85,139.77,0.04239412]
[1720712503173,7.151,139.84,139.77,0.04239412]
[1720712503375,53.28091768,139.85,139.77,7.19699412]
[1720712503589,1.13041768,139.85,139.78,7.154]
[1720712504097,8.28091768,139.85,139.77,7.19689412]
[1720712504293,1.13041768,139.85,139.78,7.1539]
[1720712504501,53.28131768,139.85,139.77,0.04239412]
[1720712504810,53.28091768,139.85,139.77,7.19689412]
[1720712504995,1.13041768,139.85,139.77,0.04239412]
[1720712505181,8.43360366,139.86,139.78,41.1275]
[1720712505375,8.43360366,139.86,139.8,17.8815]
[1720712505604,7.1486,139.89,139.8,17.8815]
[1720712505898,7.149,139.88,139.8,25.0341]
[1720712506697,9.56402134,139.87,139.78,410.5435]
[1720712506910,45.0,139.86,139.78,410.5435]
[1720712507199,9.56402134,139.85,139.78,387.3]
[1720712507699,52.1513,139.84,139.78,387.3]
[1720712507875,45.0,139.84,139.78,387.3]
[1720712508081,13.7673,139.9,139.82,7.152]
[1720712508280,13.7671,139.9,139.82,25.0318]
[1720712508575,7.1492,139.88,139.79,17.8839]
[1720712508782,7.1485,139.89,139.81,7.1523]
[1720712509200,7.1495,139.87,139.8,7.153]
[1720712509420,7.1502,139.86,139.79,25.0374]
[1720712509719,7.1495,139.87,139.79,25.0374]
[1720712509921,7.1495,139.87,139.8,7.153]
[1720712510318,17.8721,139.89,139.77,394.49679412]
[1720712510524,45.0,139.88,139.78,7.154]
[1720712510699,7.1501,139.86,139.78,7.154]
[1720712510896,45.0,139.85,139.79,7.1534]
[1720712511108,52.1509,139.85,139.77,412.38219412]
[1720712511427,7.1516,139.83,139.77,17.92809412]
[1720712511601,45.0,139.82,139.77,0.04239412]
[1720712512131,52.1516,139.83,139.77,0.04239412]
[1720712512428,45.0,139.83,139.77,0.04239412]
[1720712512631,45.0,139.83,139.77,7.19699412]
[1720712512949,45.0,139.83,139.73,5.48174633]
[1720712513101,45.0,139.83,139.71,525.1157]
[1720712513429,52.1519,139.83,139.71,503.6657]
[1720712513606,7.152,139.82,139.71,503.6657]
[1720712513929,7.152,139.82,139.73,17.8911]
[1720712514234,45.0,139.83,139.73,17.8911]
[1720712514402,45.0,139.83,139.71,403.1657]
[1720712514598,7.1529,139.81,139.74,7.156]
[1720712514798,7.152,139.82,139.75,7.1555]
[1720712514993,7.1525,139.82,139.73,17.8908]
[1720712515257,45.0,139.83,139.72,7.1568]
[1720712515395,45.0,139.83,139.71,403.1657]
[1720712515598,7.1526,139.81,139.73,7.1565]
[1720712515826,45.0,139.8,139.73,7.1565]
[1720712516002,45.0,139.8,139.72,17.8917]
[1720712516517,45.0,139.8,139.75,7.1556]
[1720712516715,45.0,139.8,139.72,17.8917]
[1720712516716,11.2844203,139.86,139.77,7.1545]
[1720712517015,7.1508,139.85,139.74,17.8891]
[1720712517218,11.2844203,139.86,139.74,17.8891]
[1720712517418,11.2844203,139.86,139.72,386.8]
[1720712517625,7.152,139.82,139.74,7.1556]
[1720712517831,11.2844203,139.86,139.76,7.155]
[1720712518039,7.1518,139.83,139.73,17.8914]
[1720712518240,7.1523,139.82,139.73,17.8914]
[1720712518441,45.0,139.81,139.73,25.0475]
[1720712518611,45.0,139.81,139.74,7.156]
[1720712519023,52.1527,139.81,139.73,25.0479]
[1720712519534,7.1531,139.8,139.72,393.957]
[1720712519747,7.1531,139.8,139.71,23.81028779]
[1720712519748,45.0,139.81,139.74,7.156]
[1720712519933,45.0,139.81,139.72,7.1571]
[1720712520281,45.0,139.81,139.71,41.70348779]
[1720712520419,45.0,139.81,139.75,7.1555]
[1720712520622,45.0,139.82,139.75,7.1555]
[1720712520815,45.0,139.82,139.71,23.81028779]
[1720712521023,7.153,139.8,139.71,23.81028779]
[1720712521232,45.0,139.82,139.72,25.0491]
[1720712521545,45.0,139.82,139.71,23.81028779]
[1720712521717,7.1531,139.8,139.72,7.1571]
[1720712522043,17.8798,139.83,139.71,41.70368779]
[1720712522044,45.0,139.79,139.71,41.70368779]
[1720712522232,7.1527,139.81,139.74,7.156]
[1720712522442,7.152,139.83,139.73,17.8908]
[1720712522644,2.56,139.78,139.75,7.1555]
[1720712522818,7.22154987,139.85,139.75,16.1755]
[1720712523028,7.1505,139.85,139.77,7.1541]
[1720712523227,7.1519,139.83,139.75,16.1755]
[1720712523515,22.7783,139.87,139.78,7.1536]
[1720712523725,22.7783,139.87,139.77,7.1545]
[1720712523927,22.7783,139.87,139.76,25.042]
[1720712524134,7.1534,139.8,139.74,386.8]
[1720712524339,7.1536,139.79,139.71,35.78138779]
[1720712524530,7.1531,139.8,139.72,7.1567]
[1720712524763,7.1546,139.77,139.71,28.62388779]
[1720712524924,45.0,139.79,139.71,29.68928779]
[1720712525272,45.0,139.79,139.71,22.53198779]
[1720712525426,7.1541,139.78,139.71,22.53198779]
[1720712525622,45.0,139.77,139.71,22.53198779]
[1720712525854,7.1536,139.79,139.71,7.44458779]
[1720712526047,45.0,139.78,139.71,7.44458779]
[1720712526248,7.1542,139.78,139.71,7.44458779]
[1720712526456,52.1546,139.77,139.71,7.44458779]
[1720712526756,6.1813,139.8,139.71,7.44458779]
[1720712526942,6.1813,139.8,139.73,7.1566]
[1720712527151,45.0,139.79,139.71,7.44458779]
[1720712527749,7.1549,139.77,139.71,7.44458779]
[1720712527953,7.1559,139.75,139.71,7.44458779]
[1720712528137,7.1552,139.76,139.71,7.44458779]
[1720712528345,62.8846,139.79,139.68,22.6768]
[1720712528545,7.1557,139.75,139.68,29.8358]
[1720712528748,62.8846,139.79,139.68,22.6768]
[1720712528749,7.1566,139.74,139.68,22.6768]
[1720712529066,62.8846,139.79,139.67,25.0583]
[1720712529356,17.8872,139.77,139.64,40.7575]
[1720712529533,87.99064987,139.79,139.64,40.7575]
[1720712529534,7.1577,139.71,139.64,47.9182]
[1720712529728,45.0,139.76,139.64,16.5922]
[1720712529934,6.5417,139.73,139.64,16.5922]
[1720712530144,7.1586,139.7,139.65,0.59327968]
[1720712530343,7.16,139.67,139.61,6.2626]
[1720712530557,17.8935,139.72,139.61,13.4252]
[1720712530869,7.1587,139.69,139.62,7.1622]
[1720712531155,6.5417,139.73,139.62,25.0666]
[1720712531351,15.1018,139.71,139.6,386.8]
[1720712531561,51.2874,139.7,139.63,7.43474222]
[1720712531762,51.2874,139.7,139.57,386.8]
[1720712531763,58.50894987,139.7,139.57,386.8]
[1720712531931,58.50894987,139.7,139.61,7.1626]
[1720712532126,58.50894987,139.7,139.6,25.0715]
[1720712532127,7.1587,139.69,139.6,25.0715]
[1720712532356,45.0,139.68,139.61,7.1626]
[1720712532571,45.0,139.68,139.6,25.0714]
[1720712532851,45.0,139.68,139.57,394.2401131]
[1720712533051,7.1602,139.67,139.57,401.4048131]
[1720712533258,45.0,139.66,139.57,394.2401131]
[1720712533556,62.8971,139.69,139.57,386.8]
[1720712533557,7.1613,139.64,139.57,386.8]
[1720712533777,62.8971,139.69,139.56,33.3214]
[1720712533941,70.63142764,139.69,139.56,33.3214]
[1720712534141,7.1607,139.65,139.56,33.3214]
[1720712534450,45.0,139.64,139.56,33.3214]
[1720712534631,7.73432764,139.69,139.59,18.7347568]
[1720712534841,11.91260163,139.74,139.59,0.8261568]
[1720712535036,29.72358923,139.74,139.66,7.1601]
[1720712535286,22.56698923,139.74,139.61,6.3544]
[1720712535447,19.64692927,139.74,139.61,6.3544]
[1720712535642,7.1571,139.72,139.63,7.1614]
[1720712535861,19.64692927,139.74,139.63,7.1614]
[1720712536037,19.64692927,139.74,139.62,17.9045]
[1720712536038,7.1596,139.68,139.61,6.3544]
[1720712536238,7.73432764,139.72,139.61,6.3544]
[1720712536464,7.73432764,139.72,139.59,0.8261568]
[1720712536639,7.1604,139.66,139.59,0.8261568]
[1720712537158,13.3521,139.68,139.61,7.1627]
[1720712537333,7.44695366,139.71,139.62,7.1622]
[1720712537334,45.0,139.67,139.62,7.1622]
[1720712537536,45.0,139.67,139.61,25.0696]
[1720712537761,45.0,139.68,139.59,0.8261568]
[1720712537945,7.1604,139.66,139.59,0.8261568]
[1720712538259,45.0,139.65,139.59,0.8261568]
[1720712538434,45.0,139.65,139.59,7.9894568]
[1720712538634,45.0,139.66,139.59,7.9894568]
[1720712538846,7.1611,139.65,139.59,0.8261568]
[1720712539138,45.0,139.64,139.59,0.8261568]
[1720712539463,7.1596,139.68,139.59,0.8261568]
[1720712539671,45.0,139.67,139.59,0.8261568]
[1720712539960,13.99075366,139.71,139.63,7.1617]
[1720712540171,13.99075366,139.71,139.61,17.9069]
[1720712540172,13.7015,139.71,139.61,17.9069]
[1720712540339,7.1582,139.7,139.62,7.1618]
[1720712540659,6.5438,139.71,139.65,7.1607]
[1720712540869,11.83160163,139.74,139.67,7.1595]
[1720712541176,11.83160163,139.74,139.67,7.1596]
[1720712541177,13.7312,139.74,139.67,7.1596]
[1720712541351,6.5751,139.74,139.66,1.1294161]
[1720712541664,7.73432764,139.76,139.67,7.1596]
[1720712541835,7.73432764,139.76,139.65,24.5169]
[1720712541836,7.1572,139.72,139.65,24.5169]
[1720712542043,7.1567,139.73,139.65,31.6774]
[1720712542250,7.1562,139.74,139.66,7.1602]
[1720712542470,7.73432764,139.76,139.69,7.1586]
[1720712542648,7.73432764,139.76,139.66,7.1602]
[1720712542847,7.73432764,139.76,139.65,6.6161]
[1720712543054,7.1557,139.75,139.67,7.1597]
[1720712543356,7.73432764,139.76,139.65,6.6161]
[1720712543357,14.88952764,139.76,139.68,8.58720991]
[1720712543555,7.1567,139.73,139.66,17.8995]
[1720712543874,21.5304,139.7,139.6,17.9081]
[1720712544034,21.5304,139.7,139.59,0.8261568]
[1720712544035,7.1602,139.66,139.59,0.8261568]
[1720712544239,7.1602,139.67,139.59,7.9894568]
[1720712544455,21.5304,139.7,139.59,0.8261568]
[1720712544665,7.1598,139.67,139.6,7.163]
[1720712544854,52.1603,139.66,139.59,7.9899568]
[1720712545053,45.0,139.66,139.6,7.1632]
[1720712545270,45.0,139.67,139.6,7.1632]
[1720712545561,45.0,139.67,139.59,0.8261568]
[1720712545955,45.0,139.67,139.6,17.9075]
[1720712546166,45.0,139.67,139.61,7.1627]
[1720712546350,21.5304,139.7,139.59,0.8261568]
[1720712546573,52.159,139.69,139.6,0.43516989]
[1720712546751,45.0,139.69,139.63,7.1617]
[1720712546952,6.5128,139.7,139.64,0.43998357]
[1720712547165,13.671,139.7,139.62,7.1619]
[1720712547350,6.5128,139.7,139.61,25.0683]
[1720712547551,6.5128,139.7,139.59,394.7895568]
[1720712547552,7.1597,139.67,139.59,394.7895568]
[1720712547779,7.1597,139.67,139.6,7.1632]
[1720712547950,7.1592,139.68,139.6,7.1632]
[1720712548151,7.1592,139.68,139.61,7.1627]
[1720712548351,7.1598,139.67,139.59,387.6261568]
[1720712548552,45.0,139.66,139.59,387.6261568]
[1720712548786,45.0,139.66,139.62,7.1622]
[1720712548962,7.1588,139.69,139.61,17.9069]
[1720712549164,7.1576,139.71,139.65,17.9011]
[1720712549389,7.1576,139.71,139.59,487.6261568]